Cogmind - Beta 13 @@@ ROGUE MODE // 2024.07.03 @ 15:28:11 Player: XBotDoesStuff Result: Destroyed by G-47 Trooper with Particle Gun Performance ------------- Evolutions (3) 1500 Regions Visited (5) 1000 Robots Destroyed (56) 280 Value Destroyed (1856) 1856 Prototype IDs (5) 100 Alien Tech Used (0) 0 Bonus (607) 607 TOTAL SCORE: 5343 Bonus ------- High Alert Combat Kills 107 Entered DSFs 500 Cogmind --------- Core Integrity 0/700 Matter 205/300 Energy 98/100 System Corruption 5% Temperature Cool (10) Movement Walking (120) Location -7/DSF Parts ------- > --- POWER (2) -------- (None) > --- PROPULSION (3) --- Aluminum Leg > --- UTILITY (4) ------ Advanced Melee Analysis Suite Advanced ECM Suite > --- WEAPON (4) ------- Katana > --- INVENTORY (5) ---- Medium Storage Unit Katana Peak State ------------ > --- POWER ------------ Improved Deuterium Engine > --- PROPULSION ------- Advanced Treads Advanced Treads > --- UTILITY ---------- Medium Storage Unit Advanced Melee Analysis Suite Microactuators > --- WEAPON ----------- Arc Projector Improved Medium Laser Advanced Beam Cannon Axe > --- INVENTORY -------- Hover Unit Flight Unit Medium Storage Unit Advanced ECM Suite Heavy EM Shotgun Heavy Missile Launcher [Rating: 34] Favorites ----------- Power Ion Engine Engine Ion Engine Propulsion Light Treads Treads Light Treads Leg Carbon-fiber Leg Hover Unit Hover Unit Flight Unit Flight Unit Utility Medium Storage Unit Device Structural Scanner Storage Medium Storage Unit Processor Advanced Melee Analysis Suite Protection Improved Light Armor Plating Weapon Minigun Energy Gun Heavy EM Shotgun Energy Cannon Beam Cannon Ballistic Gun Minigun Ballistic Cannon Improved Light Cannon Launcher Heavy Missile Launcher Slashing Weapon Axe Build | -11 -10 -9 -8 -7 -7 ------- Run | Yrd Mat Mat Mat Fac DSF Slots Evolved 6 | . . 2 2 2 . Power 1 | . . 1 . . . Propulsion 1 | . . . . 1 . Utility 2 | . . . 1 1 . Weapon 2 | . . 1 1 . . Parts Attached 79 | 6 2 38 16 1 16 Power 9 | 1 . 5 2 . 1 Engine 9 | 1 . 5 2 . 1 Core . | . . . . . . Reactor . | . . . . . . Propulsion 21 | 2 . 11 3 . 5 Treads 13 | 2 . 7 3 . 1 Leg 4 | . . 2 . . 2 Wheel . | . . . . . . Hover 2 | . . 1 . . 1 Flight 2 | . . 1 . . 1 Utility 26 | 1 2 11 6 1 5 Device 10 | . . 4 3 1 2 Storage 7 | 1 2 3 . . 1 Processor 2 | . . . . . 2 Hackware . | . . . . . . Protection 7 | . . 4 3 . . Artifact . | . . . . . . Weapon 23 | 2 . 11 5 . 5 Energy Gun 5 | . . 1 3 . 1 Energy Cannon 5 | . . 4 . . 1 Ballistic Gun 7 | 2 . 5 . . . Ballistic Cannon 1 | . . 1 . . . Launcher 2 | . . . 1 . 1 Special Weapon . | . . . . . . Impact Weapon . | . . . . . . Slashing Weapon 3 | . . . 1 . 2 Piercing Weapon . | . . . . . . Special Melee Weapon . | . . . . . . Unidentified Prototypes 3 | . . 2 1 . . Parts Lost 19 | . . 1 2 . 16 Power 5 | . . 1 2 . 2 Propulsion 5 | . . . . . 5 Utility 3 | . . . . . 3 Weapon 6 | . . . . . 6 Highest Loss Streak 15 | . . 1 2 . 15 To Critical Strikes . | . . . . . . Average Slot Usage (%) 87 | . 85 92 95 84 54 Engine 16 | . 14 19 14 7 5 Treads 18 | . 28 18 18 15 8 Leg 1 | . . 3 . . 1 Device 6 | . . 5 12 15 8 Storage 10 | . 14 11 9 7 4 Protection 3 | . . 4 5 7 2 Energy Gun 4 | . . . 13 23 11 Energy Cannon 7 | . . 11 1 . . Ballistic Gun 12 | . 28 15 3 . . Ballistic Cannon 2 | . . 2 4 . . Slashing Weapon 2 | . . . 9 7 7 Naked Turns 17 | . . . . . 17 Heaviest Build 46 | 14 14 39 40 36 46 Greatest Support 44 | 40 40 44 44 44 44 Greatest Overweight (x) 9 | . . 9 . . 4 Average Overweight (x) . | . . . . . . Largest Inventory Capacity 25 | 8 25 10 10 10 10 Average Capacity 9 | 6 8 9 10 10 8 Most Carried 10 | 3 3 10 9 6 7 Average Carried 6 | . 2 7 7 6 4 Final Capacity 10 | 8 8 10 10 10 5 Final Carried 9 | 1 3 9 7 6 2 Class Distribution -------------------- 42% | Tank 26% | Mutant 15% | Skirmisher 9% | Scavenger-Skirmisher Dominant Class ---------------- Mutant | -10/Materials Tank | -9/Materials Tank | -8/Materials Tank | -7/Factory Mutant | -7/DSF Resources | -11 -10 -9 -8 -7 -7 ----------- Run | Yrd Mat Mat Mat Fac DSF Matter Collected 1426 | 130 24 895 229 . 148 Remotely . | . . . . . . Salvage Created 2266 | . 24 1280 703 . 259 Parts 134 | . 2 71 36 . 25 Haulers Intercepted 1 | . . 1 . . . Recyclers Shooed 1 | . . 1 . . . Parts Field Recycled . | . . . . . . Retrieved Matter . | . . . . . . Parts Self-Destructed . | . . . . . . Prevented . | . . . . . . Kills | -11 -10 -9 -8 -7 -7 ------- Run | Yrd Mat Mat Mat Fac DSF Combat Hostiles Destroyed 41 | . . 25 12 . 4 Melee 2 | . . . 2 . . Guns 17 | . . 12 1 . 4 Cannons 13 | . . 12 1 . . AOE 8 | . . . 8 . . Classes Destroyed 11 | . 1 8 . . 2 Worker 4 | . . 2 2 . . Hauler 1 | . . 1 . . . Recycler 2 | . . 1 1 . . Mechanic 2 | . . 1 1 . . Watcher 6 | . 1 3 2 . . Swarmer 3 | . . 3 . . . Grunt 23 | . . 13 8 . 2 Brawler 2 | . . 2 . . . Sentry 11 | . . 7 4 . . Specialist 1 | . . . . . 1 Heavy 1 | . . . . . 1 Best Kill Streak 8 | . 1 8 7 . 3 Combat Bots Only 4 | . . 4 4 . 3 Max Kills in Single Turn 2 | . 1 2 2 . 1 Gunslinging . | . . . . . . Exploded 2 | . . . 2 . . Melee 1 | . . . 1 . . Uniques/NPCs Destroyed . | . . . . . . Combat | -11 -10 -9 -8 -7 -7 -------- Run | Yrd Mat Mat Mat Fac DSF Hostile Shots Fired 332 | . . 104 78 . 150 Missed 108 | . . 34 19 . 55 Damage Taken 3765 | . . 866 923 . 1976 Core 1091 | . . 194 185 . 712 Absorbed by Shields 15 | . . 15 . . . Redirected to Shielding 9 | . . . 9 . . Core Remaining (%) 79 | 100 100 51 66 . . Volleys Fired 133 | . 5 79 26 . 23 Largest 3 | . 2 3 3 . 3 Hottest 179 | . 40 153 144 . 179 Shots Fired 295 | . 10 166 68 . 51 Gun 189 | . 10 87 43 . 49 Cannon 99 | . . 79 18 . 2 Launcher 7 | . . . 7 . . Special . | . . . . . . Kinetic 130 | . 10 95 25 . . Thermal 93 | . . 71 4 . 18 Explosive 7 | . . . 7 . . Electromagnetic 65 | . . . 32 . 33 Robot Hit Streak 12 | . 3 11 8 . 12 Robot Miss Streak 5 | . 2 5 4 . 2 Penetration Max . | . . . . . . Secondary Targets . | . . . . . . Shots Hit Robots 188 | . 5 85 54 . 44 Core Hits 91 | . 2 39 34 . 16 Critical Kills 2 | . . 2 . . . Critical Parts Destroyed . | . . . . . . Critical Strikes 5 | . . 2 1 . 2 Burn 2 | . . . . . 2 Meltdown 1 | . . 1 . . . Destroy 1 | . . 1 . . . Blast 1 | . . . 1 . . Melee Attacks 8 | . . . 7 . 1 Impact . | . . . . . . Slashing 8 | . . . 7 . 1 Piercing . | . . . . . . Sneak Attacks . | . . . . . . Combat Hostiles . | . . . . . . Follow-up Attacks . | . . . . . . Damage Inflicted 3997 | . 68 1652 1736 . 541 Guns 2002 | . 68 861 552 . 521 Cannons 998 | . . 789 189 . 20 Explosions 768 | . . . 768 . . Melee 227 | . . . 227 . . Ramming 2 | . . 2 . . . Kinetic 1235 | . 68 889 278 . . Thermal 1189 | . . 761 217 . 211 Explosive 571 | . . . 571 . . Electromagnetic 773 | . . . 443 . 330 Impact . | . . . . . . Slashing 227 | . . . 227 . . Piercing . | . . . . . . Highest Corruption 5 | . . . 1 . 5 Average Corruption 3 | . . . 1 . 5 Corruption Purged . | . . . . . . Corruption Blocked . | . . . . . . Effects 3 | . . . 1 . 2 Matter Fused 3 | . . . 1 . 2 Overload Shots . | . . . . . . Overflow Damage 4 | . . 3 1 . . Projectiles 3 | . . 3 . . . Explosions 1 | . . . 1 . . Melee . | . . . . . . Knockbacks 5 | . . 1 4 . . Impact . | . . . . . . Kinetic 5 | . . 1 4 . . Secondary . | . . . . . . Self-Inflicted Damage 17 | . . . 17 . . Shots 1 | . . . 1 . . Rammed . | . . . . . . Targets Rammed 2 | . . 2 . . . Kicked 2 | . . 2 . . . Crushed . | . . . . . . Highest Temperature 591 | . . 591 396 . 117 Average Temperature 156 | . . 175 134 . 38 Received Heat Transfer 1337 | . . 347 486 . 504 Effects 44 | . . 38 6 . . Shutdowns 10 | . . 10 . . . Energy Bleed 4 | . . 4 . . . Interference 14 | . . 9 5 . . Short Circuit 5 | . . 5 . . . Damage (minor) 1 | . . . 1 . . Damage (major) 9 | . . 9 . . . Damage (core) 1 | . . 1 . . . Siege Activations . | . . . . . . Robots Corrupted . | . . . . . . Combat Hostiles . | . . . . . . Parts Fried 2 | . . . 1 . 1 Impact Corruptions . | . . . . . . Robots Melted 1 | . . 1 . . . Combat Hostiles 1 | . . 1 . . . Parts Melted 2 | . . 2 . . . Heat Transferred 2346 | . . 1517 237 . 592 Parts Sabotaged . | . . . . . . Parts Stolen . | . . . . . . Parts Stripped . | . . . . . . Power Chain Reactions 2 | . . . 2 . . Alert | -11 -10 -9 -8 -7 -7 ------- Run | Yrd Mat Mat Mat Fac DSF Peak Influence 576 | . 54 477 576 248 298 Initial 248 | . . 22 201 248 173 Average 246 | . 20 252 395 248 207 Maximum Alert Level 2 | . . 2 2 1 1 Low Security (%) 36 | 100 100 31 . . 66 Level 1 51 | . . 63 55 100 33 Level 2 11 | . . 5 44 . . Level 3 . | . . . . . . Level 4 . | . . . . . . Level 5 . | . . . . . . High Security . | . . . . . . Max Security . | . . . . . . Squads Dispatched 10 | . . 3 5 . 2 Investigation 3 | . . 2 1 . . Extermination . | . . . . . . Reinforcement 4 | . . 1 1 . 2 Assault . | . . . . . . Garrison 3 | . . . 3 . . Intercept . | . . . . . . Searches Triggered . | . . . . . . Construction Impeded . | . . . . . . Haulers Reinforced . | . . . . . . Active Scanning Responses . | . . . . . . Cargo Convoy Interrupts . | . . . . . . Stealth | -11 -10 -9 -8 -7 -7 --------- Run | Yrd Mat Mat Mat Fac DSF Distress Signals 1 | . . . 1 . . Communications Jammed . | . . . . . . Distress Signals . | . . . . . . Times Spotted 71 | . 4 34 19 . 14 Peak Tracking Total 6 | . 2 4 4 . 6 Tactical Retreats 5 | . . 1 1 . 3 Traps | -11 -10 -9 -8 -7 -7 ------- Run | Yrd Mat Mat Mat Fac DSF Traps Triggered . | . . . . . . Indirectly . | . . . . . . Trap Hack Attempts . | . . . . . . Triggered . | . . . . . . Disarmed . | . . . . . . Reprogrammed . | . . . . . . Reused . | . . . . . . Traps Extracted . | . . . . . . Installed . | . . . . . . Triggered . | . . . . . . Machines | -11 -10 -9 -8 -7 -7 ---------- Run | Yrd Mat Mat Mat Fac DSF Machines Disabled 5 | . . 2 3 . . Max in Single Turn 1 | . . 1 1 . . Machines Repaired . | . . . . . . Machines Dismantled . | . . . . . . Machines Sabotaged . | . . . . . . Overloaded Fab Kills . | . . . . . . Hacking | -11 -10 -9 -8 -7 -7 --------- Run | Yrd Mat Mat Mat Fac DSF Machines Accessed 10 | . 1 7 1 1 . Terminals 8 | . 1 6 . 1 . Fabricators . | . . . . . . Repair Stations . | . . . . . . Recycling Units 1 | . . . 1 . . Scanalyzers 1 | . . 1 . . . Garrison Access . | . . . . . . Total Hacks 24 | . 4 16 3 1 . Successful 14 | . 3 9 1 1 . Failed 10 | . 1 7 2 . . Catastrophic 4 | . . 3 1 . . Database Lockouts . | . . . . . . Manual 1 | . . 1 . . . Terminals 18 | . 4 13 . 1 . Fabricators . | . . . . . . Repair Stations . | . . . . . . Recycling Units 3 | . . . 3 . . Scanalyzers 3 | . . 3 . . . Garrison Access . | . . . . . . Terminal Hacks 10 | . 3 6 . 1 . Record 3 | . 2 1 . . . Prototype ID Bank 1 | . . 1 . . . Open DSF 1 | . . . . 1 . Alert Level 2 | . 1 1 . . . Transport Status 1 | . . 1 . . . Hauler Manifests 1 | . . 1 . . . Zone Layout 1 | . . 1 . . . Fabricator Hacks . | . . . . . . Repair Station Hacks . | . . . . . . Recycling Unit Hacks 1 | . . . 1 . . Recycle Component 1 | . . . 1 . . Scanalyzer 3 | . . 3 . . . Insert Component 1 | . . 1 . . . Analyze 2 | . . 2 . . . Garrison Access Hacks . | . . . . . . Unauthorized Hacks . | . . . . . . Terminals . | . . . . . . Fabricators . | . . . . . . Repair Stations . | . . . . . . Recycling Units . | . . . . . . Scanalyzers . | . . . . . . Garrison Access . | . . . . . . Data Cores Recovered . | . . . . . . Used . | . . . . . . Hacking Detections 9 | . 1 7 1 . . Full Trace Events 5 | . 1 3 1 . . Feedback Events 1 | . . . 1 . . Corruption 1 | . . . 1 . . Feedback Blocked . | . . . . . . Robot Schematics Acquired . | . . . . . . Robots Built . | . . . . . . Authchips . | . . . . . . Time . | . . . . . . Total Robot Build Rating . | . . . . . . Part Schematics Acquired . | . . . . . . Parts Built . | . . . . . . Authchips . | . . . . . . Time . | . . . . . . Total Part Build Rating . | . . . . . . Parts Repaired . | . . . . . . Time . | . . . . . . Parts Recycled 1 | . . . 1 . . Recycled Matter . | . . . . . . Retrieved Matter . | . . . . . . Retrieved Components . | . . . . . . Parts Scanalyzed 1 | . . 1 . . . Part Schematics Acquired . | . . . . . . Parts Damaged . | . . . . . . Bothacking | -11 -10 -9 -8 -7 -7 ------------ Run | Yrd Mat Mat Mat Fac DSF Used RIF Installer . | . . . . . . Robots Hacked . | . . . . . . Non-combat . | . . . . . . Combat . | . . . . . . Robot Hacks Applied . | . . . . . . Relay Couplers Released . | . . . . . . Fabnet Peak Effective % . | . . . . . . Robots Rewired . | . . . . . . Allies Hacked . | . . . . . . Hacks Repelled . | . . . . . . Allies | -11 -10 -9 -8 -7 -7 -------- Run | Yrd Mat Mat Mat Fac DSF Total Allies . | . . . . . . Largest Group . | . . . . . . Highest-Rated Group . | . . . . . . Highest-Rated Ally . | . . . . . . Total Orders . | . . . . . . Ally Attacks . | . . . . . . Total Damage . | . . . . . . Kills . | . . . . . . Allies Corrupted . | . . . . . . Allies Melted . | . . . . . . Intel | -11 -10 -9 -8 -7 -7 ------- Run | Yrd Mat Mat Mat Fac DSF Robot Analysis Total . | . . . . . . Derelict Logs Recovered . | . . . . . . Drone Launches . | . . . . . . Drone Recoveries . | . . . . . . Exploration | -11 -10 -9 -8 -7 -7 ------------- Run | Yrd Mat Mat Mat Fac DSF Turns Passed 2501 | 69 243 1405 496 25 263 Spaces Moved 1279 | 44 140 709 240 17 129 Core 71 | 12 . 6 . . 53 Treads 1051 | 32 140 582 240 17 40 Legs 150 | . . 121 . . 29 Wheels . | . . . . . . Hover 7 | . . . . . 7 Flight . | . . . . . . Fastest Speed 50 | 50 160 120 145 145 50 Average Speed 151 | 130 160 156 145 145 130 Slowest Speed 500 | 160 160 500 145 145 250 Overloaded Moves . | . . . . . . Propulsion Burnouts . | . . . . . . Robots Hopped . | . . . . . . Cave-ins Triggered . | . . . . . . Exploration Rate (%) 33 | 3 34 48 24 . 59 Regions Visited 5 Branch Regions . Pre-discovered Areas . | . . . . . . Known Exits Taken 1 | . . . . 1 . Unknown Exits Taken 4 | 1 1 1 1 . . Scrap Searched . | . . . . . . Spaces Dug . | . . . . . . Terrain Destroyed 125 | . . 4 121 . . Melee . | . . . . . . Projectile 6 | . . 4 2 . . AOE 119 | . . . 119 . . Terrain Rammed . | . . . . . . Walls Destroyed . | . . . . . . Machines Disabled . | . . . . . . Actions | -11 -10 -9 -8 -7 -7 --------- Run | Yrd Mat Mat Mat Fac DSF Total 1602 | 56 148 882 317 17 182 Wait 16 | . . . 16 . . Move 1274 | 43 139 708 239 16 129 Hop . | . . . . . . Pick Up 57 | 7 2 32 7 . 9 Fast Attach 1 | . . 1 . . . Attach 39 | 6 . 13 5 1 14 Detach 3 | . . 1 1 . 1 Swap 39 | . 2 24 11 . 2 Drop 30 | . . 22 5 . 3 Fire 133 | . 5 79 26 . 23 Melee 8 | . . . 7 . 1 Ram . | . . . . . . Kick 2 | . . 2 . . . Crush . | . . . . . . Escape Stasis . | . . . . . . Rewire . | . . . . . . Trap . | . . . . . . Miscellaneous . | . . . . . . Route ------- -11/Scrapyard -10/Materials -9/Materials -8/Materials -7/Factory -7/DSF History --------- Turn | Location | Event 7 | -11/Scrapyard | Discovered new exit (range 15) 70 | -11/Scrapyard | Entered Materials 259 | -10/Materials | Discovered new exit (range 16) 313 | -10/Materials | Entered another Materials area 313 | -9/Materials | Evolved 2 slots: Power x1, Weapon x1 318 | -9/Materials | Build established: Mutant 1533 | -9/Materials | Discovered new exit (range 7) 1718 | -9/Materials | Entered another Materials area 1718 | -8/Materials | Evolved 2 slots: Utility x1, Weapon x1 1993 | -8/Materials | Garrison activated, responded to threat 2140 | -8/Materials | Discovered new exit (range 13) 2214 | -8/Materials | Entered Factory 2214 | -7/Factory | Evolved 2 slots: Propulsion x1, Utility x1 2231 | -7/Factory | Identified exit to DSF 2239 | -7/Factory | Entered DSF 2304 | -7/DSF | Additional patrols routed to DSF 2398 | -7/DSF | Core integrity fell below 50% 2429 | -7/DSF | Core integrity fell below 20% 2436 | -7/DSF | Lost 15 parts (2p4n3u6w) 2502 | -7/DSF | Destroyed by G-47 Trooper with Particle Gun Last Messages --------------- Dropped Med. Storage Unit. Discarded Adv. Melee Analysis Suite. Flight Unit destroyed. System corrupted by crushing effect (+5). System corrupted: Matter fused (-6). Hover Unit destroyed. Acquired 5 matter. Acquired 73 matter. Acquired Katana. Your per-turn energy upkeep is currently significantly in the negative, which may be okay for now but be prepared to manage it more closely. Critical hit (Burn: +37). Acquired Aluminum Leg. Acquired Adv. Melee Analysis Suite. X-67 Chaingunner destroyed. Aluminum Leg destroyed. G-47 Trooper destroyed. System corrupted: Matter fused (-10). Map ----- +----------------------------------------------------+ | | | | | | | | | | | | | | | | | | | | | | | | | | | | | | | ??????????????????????????????????? | | ??????????????????????????????????? | | ??????????????????????????????????? | | ??????????###?????????????????????? | | ????????#""##?????????????????????? | | ?????#####"###????????????????????? | | ?????#####"#######?##########?????? | | ?????##"""""######### #?###?? | | ??#####"""""## # # # # | | ??##"##%" [ | | ??##""""% @ !! | | ??#####"" ! ## # /### ###!!!#?? | | ???######=!### #///### ###?????? | | ?????#### =########## !!#?????? | | ??????##/ ##?????# !!#?????? | | ??????##/ ##?????# !!#?????? | | ??????### ####?????### ###?????? | | ??????##/ ##?????#!! !!#?????? | | ??????##/ ##?????#!! !!#?????? | | ?????###/ ########!! !!#?????? | | ?????#### ############ ###?????? | | ????### % ##///#!!!###!* ###??]#?? | | ????###% gg#"///"!!!##!!![ ##]]]#!! | | ???###"! = ]!%=!* | | ???## "!! %* *!!=% ^ | | ???## "!! ! !=== ^ | | ???####!! ##! !" ! ##%! ##!!!#]] | | ????###!! ##!!!#!!!###!* ###!!!#?? | | ?????##################=%!###?###?? | | ?????################ ! ! !!??????? | | ??????????????????????! !!#?????? | | ?????????????????????!! !!#?????? | | ?????????????????????## ###?????? | | ?????????????????????? ???????? | | ?????????????????????? ???????? | +----------------------------------------------------+ Best States ------------- Heat Dissipation 44 Energy Generation 23 Energy Capacity 455 Matter Stores 400 Matter Capacity 400 Sight Range 16 Terrain Scan Density 10 Armor Coverage 150 Power Shielding 66 Melee Speed Boost 20 Evasion (%) 55 Melee Accuracy 8 Recoil Reduction 2 Item Schematics ----------------- None Robot Schematics ------------------ None Fabricated ------------ Nothing Alien Tech Used ----------------- None Achievements -------------- It's Just You Shopping List Challenges ------------ None Game ------ Seed SwarmAuthchipBroadsword Manual? 0 Play Time 00:40:39 Cumulative 3.4 hours Start 2024.07.03 @ 14:44:22 End 2024.07.03 @ 15:28:11 Sessions 1 Manual Loads 0 Difficulty Rogue Special Mode None Game No. 6 Rogue 6 Adventurer 0 Explorer 0 Win Type - Total 0 Types 0/0/0/0/0/0/0/0/0 Lore% 3 Gallery% 9 Achievement% 8 Wizard Run 0 Options --------- Layout 1 ASCII 0 Keyboard 0 Movement Arrows Keybinds 0 Fullscreen 1 Font 24/Smallcaps Map View 50x35 Zoom Use 0% Tactical HUD 0 Map Filters NONE Filters NONE Steam 1 RUN: 2ea0a40c-e0b9-477c-acfc-0faabc520434